fUST/lending_fUST_20250121
["ID","MTS","AMOUNT","RATE_DAILY","PERIOD"]
[349805099,1737436267255,-500.0,0.0002315,3]
[349805100,1737436267264,-1333.83,0.0002315,3]
[349805101,1737436267274,-500.0,0.0002315,3]
[349805102,1737436267283,-1527.69,0.0002315,3]
[349805103,1737436267293,-500.0,0.0002315,3]
[349805104,1737436267303,-500.0,0.0002315,3]
[349805105,1737436267313,-500.0,0.0002315,3]
[349805106,1737436267323,-500.0,0.0002315,3]
[349805107,1737436267333,-953.42,0.0002315,3]
[349805108,1737436267342,-500.0,0.0002315,3]
[349805109,1737436267351,-318.01948743,0.0002315,3]
[349805110,1737436267362,-500.0,0.0002315,3]
[349805111,1737436267371,-1913.55,0.0002315,3]
[349805112,1737436267380,-822.24,0.0002315,3]
[349805113,1737436267390,-824.53,0.0002315,3]
[349805114,1737436267399,-1171.5,0.0002315,3]
[349805115,1737436267409,-757.81,0.0002315,3]
[349805116,1737436267419,-730.74,0.0002315,3]
[349805117,1737436267428,-717.4,0.0002315,3]
[349805118,1737436267439,-1169.85,0.0002315,3]
[349805119,1737436267449,-1423.53,0.0002315,3]
[349805120,1737436267459,-624.85,0.0002315,3]
[349805121,1737436267469,-500.0,0.0002315,3]
[349805122,1737436267479,-500.0,0.0002315,3]
[349805123,1737436267488,-813.03,0.0002315,3]
[349805124,1737436267498,-500.0,0.0002315,3]
[349805125,1737436267508,-500.0,0.0002315,3]
[349805126,1737436267518,-500.0,0.0002315,3]
[349805127,1737436267527,-814.58,0.0002315,3]
[349805128,1737436267538,-500.0,0.0002315,3]
[349805129,1737436267547,-827.27,0.0002315,3]
[349805130,1737436267557,-747.15,0.0002315,3]
[349805131,1737436267568,-681.43,0.0002315,3]
[349805132,1737436267577,-553.80138769,0.0002315,3]
[349805133,1737436267587,-500.0,0.0002315,3]
[349805134,1737436267598,-500.0,0.0002315,3]
[349805135,1737436267608,-214.0524329,0.0002315,3]
[349805136,1737436267618,-998.18,0.0002315,3]
[349805137,1737436267628,-500.81,0.0002315,3]
[349805138,1737436267638,-500.0,0.0002315,3]
[349805139,1737436267648,-1253.69,0.0002315,3]
[349805140,1737436267657,-500.0,0.0002315,3]
[349805141,1737436267667,-500.0,0.0002315,3]
[349805142,1737436267676,-539.27,0.0002315,3]
[349805143,1737436267686,-859.92,0.0002315,3]
[349805144,1737436267695,-500.0,0.0002315,3]
[349805145,1737436267704,-1244.51,0.0002315,3]
[349805146,1737436267714,-500.0,0.0002315,3]
[349805147,1737436267723,-500.0,0.0002315,3]
[349805148,1737436267732,-856.94,0.0002315,3]
[349805149,1737436267741,-500.0,0.0002315,3]
[349805150,1737436267751,-500.0,0.0002315,3]
[349805151,1737436267762,-565.02,0.0002315,3]
[349805152,1737436267772,-850.13,0.0002315,3]
[349805153,1737436267783,-500.0,0.0002315,3]
[349805154,1737436267792,-511.72,0.0002315,3]
[349805155,1737436267802,-846.61,0.0002315,3]
[349805156,1737436267813,-500.0,0.0002315,3]
[349805157,1737436267823,-500.0,0.0002315,3]
[349805158,1737436267832,-510.96,0.0002315,3]
[349805159,1737436267843,-1671.98,0.0002315,2]
[349805160,1737436267852,-500.0,0.0002315,3]
[349805161,1737436267861,-1863.02,0.0002315,3]
[349805162,1737436267870,-7275.37,0.0002315,3]
[349805163,1737436267879,-500.0,0.0002315,3]
[349805164,1737436267889,-5517.57,0.0002315,3]
[349805165,1737436267897,-500.0,0.0002315,3]
[349805166,1737436267907,-718.57,0.0002315,3]
[349805167,1737436267916,-1581.02,0.0002315,3]
[349805168,1737436267926,-849.72,0.0002315,3]
[349805169,1737436267934,-174.88453428,0.0002315,3]
[349805170,1737436267944,-1294.2,0.0002315,3]
[349805171,1737436267953,-500.0,0.0002315,3]
[349805172,1737436267963,-567.86,0.0002315,3]
[349805173,1737436267972,-795.86,0.0002315,3]
[349805174,1737436267981,-500.0,0.0002315,3]
[349805175,1737436267990,-500.0,0.0002315,3]
[349805176,1737436267999,-2490.81,0.0002315,3]
[349805177,1737436268009,-602.21,0.0002315,3]
[349805178,1737436268019,-598.1,0.0002315,3]
[349805179,1737436268028,-906.2,0.0002315,3]
[349805180,1737436268038,-500.0,0.0002315,3]
[349805181,1737436268047,-500.0,0.0002315,3]
[349805182,1737436268056,-245.11381037,0.0002315,3]
[349805183,1737436268067,-500.0,0.0002315,3]
[349805184,1737436268076,-500.0,0.0002315,3]
[349805185,1737436268086,-500.0,0.0002315,3]
[349805186,1737436268095,-517.62,0.0002315,3]
[349805187,1737436268105,-500.0,0.0002315,3]
[349805188,1737436268114,-500.0,0.0002315,3]
[349805189,1737436268124,-12579.66158245,0.0002315,3]
[349805190,1737436268464,163.444894,0.00013973,2]
[349805191,1737436270358,163.444894,0.00013833,2]
[349805198,1737436592228,200.0,0.00024,120]
[349805199,1737436596310,200.0,0.00024,120]
[349805200,1737436683783,200.0,0.0002,20]
[349805201,1737436687267,1110.3,0.000167,2]
[349805202,1737436687829,200.0,0.0002,20]
[349805203,1737437061843,161.0,0.00024,120]
[349805204,1737437068729,161.0,0.00024,120]
[349805209,1737437319899,6197.40011243,0.000165,2]
[349805210,1737437319926,80000.0,0.000165,2]
[349805211,1737437319951,484242.86162061,0.000165,2]
[349805212,1737437319979,817997.52180095,0.000165,2]
[349805213,1737437320005,850.0,0.000165,2]
[349805232,1737437368268,163.277405,0.00013973,2]
[349805251,1737437432784,-300.0,0.00016171,2]
[349805252,1737437432795,-300.0,0.00016334,2]
[349805253,1737437432805,-300.0,0.00016499,2]
[349805254,1737437432815,-878.4821349,0.000165,2]
[349805255,1737437432843,-2701.58073487,0.000165,2]
[349805256,1737437432907,-22344.78937181,0.000165,2]
[349805283,1737437438254,-66999.7006026,0.000165,2]
[349805349,1737437438870,-5336.7496279,0.000165,2]
[349805351,1737437438880,-420.0,0.0001803,2]
[349805353,1737437438890,-567.00137583,0.000189,2]
[349805355,1737437438899,-5510.41,0.0001897,3]
[349805357,1737437438909,-11020.82,0.0001898,3]
[349805359,1737437438919,-520.68,0.0001899,3]
[349805361,1737437438928,-367.13045705,0.00019,2]
[349805363,1737437438938,-587.0,0.00019703,2]
[349805365,1737437438948,-807.42392879,0.000201,2]
[349805367,1737437438958,-807.42392864,0.000201,2]
[349805369,1737437438967,-807.42392864,0.000201,2]
[349805371,1737437438977,-807.42392864,0.000201,2]
[349805373,1737437438987,-807.42392864,0.000201,2]
[349805375,1737437438996,-807.42392864,0.000201,2]
[349805377,1737437439006,-807.42392864,0.00020141,2]
[349805379,1737437439015,-2755.2,0.0002033,3]
[349805381,1737437439026,-11020.82,0.0002034,3]
[349805383,1737437439035,-807.42392864,0.00020348,2]
[349805384,1737437439044,-22041.64,0.0002035,3]
[349805385,1737437439053,-500.0,0.00020432,2]
[349805386,1737437439062,-807.42392864,0.00020555,2]
[349805387,1737437439073,-3316.4439085,0.00020756,2]
[349805388,1737437439082,-807.42392864,0.00020762,2]
[349805389,1737437439092,-350.75124751,0.000208,4]
[349805390,1737437439102,-423.3616629,0.00020911,11]
[349805391,1737437439111,-807.42392864,0.00020969,2]
[349805392,1737437439122,-725.89029364,0.00021,2]
[349805393,1737437439134,-807.42392864,0.00021176,2]
[349805394,1737437439144,-163.277405,0.00021209,2]
[349805395,1737437439153,-807.42392864,0.00021383,2]
[349805396,1737437439162,-823.0,0.00021531,2]
[349805397,1737437439172,-807.42392864,0.0002159,2]
[349805398,1737437439181,-5510.4,0.000217,3]
[349805399,1737437439190,-807.42392864,0.00021797,3]
[349805400,1737437439201,-213.85840875,0.00021817,2]
[349805401,1737437439212,-1320.8,0.000219,2]
[349805402,1737437439221,-200.0,0.000219,2]
[349805404,1737437439230,-200.0,0.000219,3]
[349805406,1737437439240,-200.0,0.000219,2]
[349805408,1737437439249,-200.0,0.000219,3]
[349805410,1737437439259,-200.0,0.000219,14]
[349805412,1737437439268,-200.0,0.000219,15]
[349805414,1737437439277,-154.41,0.000219,2]
[349805416,1737437439286,-200.0,0.000219,20]
[349805418,1737437439296,-200.0,0.000219,21]
[349805420,1737437439305,-200.0,0.000219,13]
[349805422,1737437439314,-200.0,0.000219,14]
[349805425,1737437439326,-200.0,0.000219,15]
[349805427,1737437439335,-200.0,0.000219,2]
[349805429,1737437439344,-200.0,0.000219,3]
[349805431,1737437439354,-169.934,0.00021907,2]
[349805433,1737437439363,-500.0,0.00021916,2]
[349805435,1737437439372,-164.52750031,0.00021916,2]
[349805437,1737437439381,-500.0,0.00021916,2]
[349805439,1737437439391,-212.22761681,0.00021916,2]
[349805441,1737437439400,-500.0,0.00021916,2]
[349805443,1737437439409,-645.89585706,0.00021916,2]
[349805445,1737437439418,-500.0,0.00021916,2]
[349805447,1737437439428,-368.19923349,0.00021916,2]
[349805449,1737437439437,-500.0,0.00021916,2]
[349805451,1737437439447,-408.12354362,0.00021916,2]
[349805453,1737437439456,-500.0,0.00021916,7]
[349805455,1737437439465,-500.0,0.00021916,2]
[349805457,1737437439475,-500.0,0.00021916,2]
[349805459,1737437439484,-500.0,0.00021916,2]
[349805461,1737437439493,-500.0,0.00021916,2]
[349805463,1737437439502,-500.0,0.00021916,2]
[349805465,1737437439511,-500.0,0.00021916,2]
[349805467,1737437439520,-500.0,0.00021916,2]
[349805469,1737437439530,-500.0,0.00021916,2]
[349805471,1737437439539,-500.0,0.00021916,2]
[349805473,1737437439548,-500.0,0.00021916,2]
[349805475,1737437439558,-500.0,0.00021916,2]
[349805477,1737437439569,-500.0,0.00021916,2]
[349805479,1737437439578,-500.0,0.00021916,2]
[349805481,1737437439587,-500.0,0.00021916,2]
[349805483,1737437439596,-500.0,0.00021916,2]
[349805485,1737437439606,-500.0,0.00021916,2]
[349805487,1737437439615,-500.0,0.00021916,2]
[349805489,1737437439625,-500.0,0.00021916,2]
[349805491,1737437439634,-500.0,0.00021916,2]
[349805493,1737437439644,-500.0,0.00021916,2]
[349805495,1737437439653,-500.0,0.00021916,2]
[349805497,1737437439663,-500.0,0.00021916,2]
[349805521,1737437439892,-500.0,0.00021916,2]
[349805523,1737437439904,-500.0,0.00021916,2]
[349805525,1737437439914,-500.0,0.00021916,2]
[349805527,1737437439924,-500.0,0.00021916,2]
[349805529,1737437439934,-500.0,0.00021916,2]
[349805531,1737437439945,-500.0,0.00021916,2]
[349805533,1737437439955,-500.0,0.00021916,2]
[349805535,1737437439964,-500.0,0.00021916,2]
[349805537,1737437439974,-500.0,0.00021916,2]
[349805539,1737437439984,-500.0,0.00021916,2]
[349805541,1737437439994,-500.0,0.00021916,2]
[349805543,1737437440006,-500.0,0.00021916,2]
[349805545,1737437440016,-500.0,0.00021916,2]
[349805548,1737437440027,-500.0,0.00021916,2]
[349805550,1737437440038,-500.0,0.00021916,2]
[349805552,1737437440048,-500.0,0.00021916,2]
[349805554,1737437440058,-500.0,0.00021916,2]
[349805556,1737437440069,-272.60000005,0.00021916,2]
[349805558,1737437440078,-500.0,0.00021916,2]
[349805560,1737437440088,-500.0,0.00021916,2]
[349805562,1737437440098,-500.0,0.00021916,2]
[349805564,1737437440107,-500.0,0.00021916,2]
[349805566,1737437440117,-500.0,0.00021916,2]
[349805568,1737437440129,-500.0,0.00021916,2]
[349805570,1737437440138,-500.0,0.00021916,2]
[349805572,1737437440147,-500.0,0.00021916,2]
[349805574,1737437440155,-500.0,0.00021916,2]
[349805576,1737437440166,-500.0,0.00021916,2]
[349805578,1737437440175,-500.0,0.00021916,2]
[349805580,1737437440185,-500.0,0.00021916,2]
[349805582,1737437440196,-500.0,0.00021916,2]
[349805584,1737437440205,-300.0,0.00021916,2]
[349805586,1737437440215,-500.0,0.00021916,2]
[349805588,1737437440225,-500.0,0.00021916,2]
[349805590,1737437440234,-504.1844452,0.00021917,3]
[349805592,1737437440244,-501.04457165,0.00021917,3]
[349805594,1737437440253,-500.0,0.00021917,3]
[349805596,1737437440263,-500.0,0.00021917,3]
[349805598,1737437440272,-500.0,0.00021917,3]
[349805600,1737437440282,-500.0,0.00021917,3]
[349805602,1737437440291,-500.0,0.00021917,3]
[349805604,1737437440300,-194.4354513,0.00021917,3]
[349805606,1737437440310,-500.0,0.00021917,3]
[349805609,1737437440320,-500.0,0.00021917,3]
[349805611,1737437440330,-500.0,0.00021917,3]
[349805613,1737437440339,-500.0,0.00021917,3]
[349805615,1737437440349,-625.36256088,0.00021917,3]
[349805617,1737437440358,-625.09857921,0.00021917,3]
[349805619,1737437440368,-500.0,0.00021917,3]
[349805621,1737437440377,-500.0,0.00021917,3]
[349805623,1737437440386,-504.54295791,0.00021917,3]
[349805625,1737437440396,-500.0,0.00021917,3]
[349805627,1737437440405,-500.0,0.00021917,3]
[349805629,1737437440415,-500.0,0.00021917,3]
[349805631,1737437440425,-500.0,0.00021917,3]
[349805633,1737437440434,-500.0,0.00021917,3]
[349805635,1737437440444,-500.0,0.00021917,3]
[349805637,1737437440453,-500.0,0.00021917,3]
[349805639,1737437440463,-500.0,0.00021917,3]
[349805641,1737437440473,-500.0,0.00021917,3]
[349805643,1737437440482,-500.0,0.00021917,3]
[349805645,1737437440491,-500.0,0.00021917,3]
[349805647,1737437440500,-557.34175482,0.00021917,3]
[349805649,1737437440510,-1086.76,0.00021917,3]
[349805651,1737437440520,-500.0,0.00021917,3]
[349805653,1737437440529,-424.61736402,0.00021917,3]
[349805656,1737437440538,-500.0,0.00021917,3]
[349805658,1737437440548,-501.62,0.00021917,3]
[349805660,1737437440557,-500.0,0.00021917,3]
[349805662,1737437440566,-500.0,0.00021917,3]
[349805664,1737437440577,-500.0,0.00021917,3]
[349805666,1737437440587,-500.0,0.00021917,3]
[349805668,1737437440596,-500.0,0.00021917,3]
[349805670,1737437440605,-500.0,0.00021917,3]
[349805672,1737437440615,-500.0,0.00021917,3]
[349805674,1737437440625,-987.66,0.00021917,3]
[349805676,1737437440634,-500.0,0.00021917,3]
[349805678,1737437440645,-500.0,0.00021917,3]
[349805680,1737437440654,-500.0,0.00021917,3]
[349805682,1737437440663,-500.0,0.00021917,3]
[349805684,1737437440673,-500.0,0.00021917,3]
[349805686,1737437440683,-1104.18,0.00021917,3]
[349805688,1737437440693,-500.0,0.00021917,3]
[349805690,1737437440702,-500.0,0.00021917,3]
[349805692,1737437440712,-500.0,0.00021917,3]
[349805694,1737437440722,-500.0,0.00021917,3]
[349805696,1737437440731,-500.0,0.00021917,3]
[349805698,1737437440740,-604.63,0.00021917,3]
[349805700,1737437440750,-500.0,0.00021917,3]
[349805702,1737437440760,-500.0,0.00021917,3]
[349805704,1737437440770,-597.83,0.00021917,3]
[349805706,1737437440780,-521.85,0.00021917,3]
[349805708,1737437440789,-500.0,0.00021917,3]
[349805710,1737437440799,-215.60838217,0.00021917,3]
[349805712,1737437440809,-534.79,0.00021917,3]
[349805714,1737437440818,-500.0,0.00021917,3]
[349805716,1737437440828,-516.71,0.00021917,3]
[349805718,1737437440838,-500.0,0.00021917,3]
[349805721,1737437440848,-500.0,0.00021917,3]
[349805723,1737437440857,-500.0,0.00021917,3]
[349805725,1737437440868,-1083.51,0.00021917,3]
[349805726,1737437440878,-500.0,0.00021917,3]
[349805729,1737437440888,-500.0,0.00021917,3]
[349805731,1737437440898,-500.0,0.00021917,3]
[349805733,1737437440908,-500.0,0.00021917,3]
[349805735,1737437440917,-500.0,0.00021917,3]
[349805737,1737437440927,-500.0,0.00021917,3]
[349805739,1737437440936,-500.0,0.00021917,3]
[349805741,1737437440945,-500.0,0.00021917,3]
[349805743,1737437440955,-500.0,0.00021917,3]
[349805745,1737437440965,-500.0,0.00021917,3]
[349805747,1737437440975,-500.0,0.00021917,3]
[349805749,1737437440984,-500.0,0.00021917,3]
[349805751,1737437440994,-500.0,0.00021917,3]
[349805753,1737437441006,-500.0,0.00021917,3]
[349805755,1737437441016,-743.12,0.00021917,3]
[349805757,1737437441025,-500.0,0.00021917,3]
[349805759,1737437441035,-500.0,0.00021917,3]
[349805761,1737437441045,-511.58,0.00021917,3]
[349805763,1737437441054,-500.0,0.00021917,3]
[349805765,1737437441065,-500.0,0.00021917,3]
[349805767,1737437441075,-500.0,0.00021917,3]
[349805769,1737437441084,-500.0,0.00021917,3]
[349805771,1737437441094,-500.0,0.00021917,3]
[349805773,1737437441103,-500.0,0.00021917,3]
[349805776,1737437441113,-500.0,0.00021917,3]
[349805778,1737437441123,-500.0,0.00021917,3]
[349805780,1737437441135,-512.09,0.00021917,3]
[349805782,1737437441145,-500.0,0.00021917,3]
[349805784,1737437441154,-500.0,0.00021917,3]
[349805786,1737437441164,-500.0,0.00021917,3]
[349805788,1737437441178,-501.90681075,0.00021917,3]
[349805790,1737437441188,-500.0,0.00021917,3]
[349805792,1737437441218,-158.92932469,0.00021917,3]
[349805794,1737437441227,-500.0,0.00021917,3]
[349805795,1737437441237,-500.0,0.00021917,3]
[349805797,1737437441246,-500.0,0.00021917,3]
[349805800,1737437441256,-500.0,0.00021917,3]
[349805802,1737437441265,-500.0,0.00021917,3]
[349805804,1737437441275,-500.0,0.00021917,3]
[349805806,1737437441284,-502.04689333,0.00021917,3]
[349805808,1737437441294,-731.32,0.00021917,3]
[349805810,1737437441304,-500.0,0.00021917,3]
[349805812,1737437441314,-500.0,0.00021917,3]
[349805814,1737437441325,-500.0,0.00021917,3]
[349805816,1737437441334,-500.0,0.00021917,3]
[349805818,1737437441343,-500.0,0.00021917,3]
[349805820,1737437441353,-500.0,0.00021917,3]
[349805822,1737437441362,-500.0,0.00021917,3]
[349805824,1737437441371,-500.0,0.00021917,3]
[349805826,1737437441380,-500.0,0.00021917,3]
[349805828,1737437441390,-500.0,0.00021917,3]
[349805830,1737437441399,-500.0,0.00021917,3]
[349805832,1737437441409,-500.0,0.00021917,3]
[349805834,1737437441418,-500.0,0.00021917,3]
[349805836,1737437441427,-500.0,0.00021917,3]
[349805838,1737437441437,-500.0,0.00021917,3]
[349805840,1737437441446,-500.0,0.00021917,3]
[349805842,1737437441455,-500.0,0.00021917,3]
[349805844,1737437441465,-500.0,0.00021917,3]
[349805846,1737437441475,-500.0,0.00021917,3]
[349805848,1737437441485,-500.0,0.00021917,3]
[349805850,1737437441495,-500.0,0.00021917,3]
[349805852,1737437441504,-179.32037941,0.00021917,3]
[349805854,1737437441514,-500.0,0.00021917,3]
[349805856,1737437441523,-500.0,0.00021917,3]
[349805858,1737437441532,-500.0,0.00021917,3]
[349805860,1737437441542,-500.0,0.00021917,3]
[349805862,1737437441551,-500.0,0.00021917,3]
[349805864,1737437441561,-500.0,0.00021917,3]
[349805866,1737437441570,-500.0,0.00021917,3]
[349805868,1737437441579,-779.85,0.00021917,3]
[349805870,1737437441589,-500.0,0.00021917,3]
[349805872,1737437441598,-662.16,0.00021917,3]
[349805875,1737437441608,-500.0,0.00021917,3]
[349805877,1737437441618,-500.0,0.00021917,3]
[349805879,1737437441627,-490.19593004,0.00021917,3]
[349805880,1737437441637,-500.0,0.00021917,3]
[349805882,1737437441647,-500.0,0.00021917,3]
[349805884,1737437441656,-500.0,0.00021917,3]
[349805886,1737437441666,-500.0,0.00021917,3]
[349805888,1737437441675,-500.0,0.00021917,3]
[349805890,1737437441685,-500.0,0.00021917,3]
[349805892,1737437441695,-500.0,0.00021917,3]
[349805894,1737437441705,-500.0,0.00021917,3]
[349805896,1737437441714,-500.0,0.00021917,3]
[349805898,1737437441724,-500.0,0.00021917,3]
[349805900,1737437441734,-500.0,0.00021917,3]
[349805902,1737437441743,-500.0,0.00021917,3]
[349805904,1737437441753,-500.0,0.00021917,3]
[349805906,1737437441762,-500.0,0.00021917,3]
[349805908,1737437441774,-510.42339776,0.00021917,3]
[349805910,1737437441786,-500.0,0.00021917,3]
[349805912,1737437441796,-741.48,0.00021917,3]
[349805914,1737437441805,-500.0,0.00021917,3]
[349805916,1737437441815,-500.0,0.00021917,3]
[349805918,1737437441826,-500.0,0.00021917,3]
[349805920,1737437441836,-500.0,0.00021917,3]
[349805922,1737437441846,-500.0,0.00021917,3]
[349805924,1737437441855,-1016.99,0.00021917,2]
[349805926,1737437441865,-500.0,0.00021917,3]
[349805928,1737437441874,-500.0,0.00021917,3]
[349805930,1737437441884,-500.0,0.00021917,3]
[349805932,1737437441894,-500.0,0.00021917,3]
[349805934,1737437441904,-500.0,0.00021917,3]
[349805936,1737437441913,-500.0,0.00021917,3]
[349805938,1737437441923,-500.0,0.00021917,3]
[349805940,1737437441932,-500.0,0.00021917,3]
[349805942,1737437441941,-500.0,0.00021917,3]
[349805944,1737437441951,-248.75813555,0.00021917,3]
[349805946,1737437441960,-500.0,0.00021917,3]
[349805948,1737437441969,-501.41733031,0.00021917,3]
[349805950,1737437441979,-1710.64,0.00021917,3]
[349805952,1737437441988,-500.0,0.00021917,3]
[349805954,1737437441998,-500.0,0.00021917,3]
[349805956,1737437442007,-500.0,0.00021917,3]
[349805958,1737437442018,-943.1,0.00021917,3]
[349805960,1737437442028,-500.0,0.00021917,3]
[349805962,1737437442038,-489.70274801,0.00021917,3]
[349805964,1737437442047,-504.46360496,0.00021917,3]
[349805966,1737437442056,-500.0,0.00021917,3]
[349805968,1737437442066,-500.0,0.00021917,3]
[349805970,1737437442077,-500.0,0.00021917,3]
[349805972,1737437442086,-500.0,0.00021917,3]
[349805974,1737437442096,-500.85953805,0.00021917,3]
[349805976,1737437442107,-500.0,0.00021917,3]
[349805978,1737437442116,-610.82,0.00021917,3]
[349805980,1737437442130,-500.0,0.00021917,3]
[349805982,1737437442139,-500.0,0.00021917,3]
[349805984,1737437442149,-500.0,0.00021917,3]
[349805986,1737437442158,-500.0,0.00021917,3]
[349805988,1737437442169,-500.0,0.00021917,3]
[349805990,1737437442179,-570.28,0.00021917,3]
[349805992,1737437442188,-500.0,0.00021917,3]
[349805994,1737437442199,-2548.52,0.00021917,3]
[349805996,1737437442209,-500.0,0.00021917,3]
[349805998,1737437442218,-12220.24,0.00021917,3]
[349806000,1737437442227,-500.84848861,0.00021917,3]
[349806002,1737437442236,-500.0,0.00021917,3]
[349806004,1737437442246,-500.0,0.00021917,3]
[349806006,1737437442255,-500.0,0.00021917,3]
[349806008,1737437442265,-527.88,0.00021917,3]
[349806010,1737437442274,-1572.66,0.00021917,3]
[349806012,1737437442285,-500.0,0.00021917,3]
[349806014,1737437442294,-500.0,0.00021917,3]
[349806016,1737437442303,-500.0,0.00021917,3]
[349806018,1737437442313,-603.56,0.00021917,3]
[349806020,1737437442323,-500.0,0.00021917,3]
[349806022,1737437442333,-3750.02,0.00021917,3]
[349806024,1737437442342,-490.86458803,0.00021917,3]
[349806077,1737437442849,-2768.01467692,0.00016335,2]
[349806080,1737437442865,-314.3060045,0.00016335,2]
[349806124,1737437443382,-4322.4528865,0.00016335,2]
[349806125,1737437443392,-9.13541197,0.00021917,3]
[349806126,1737437443402,-584.41,0.00021917,3]
[349806127,1737437443412,-500.0,0.00021917,3]
[349806128,1737437443421,-500.0,0.00021917,3]
[349806129,1737437443431,-500.0,0.00021917,3]
[349806130,1737437443441,-500.0,0.00021917,3]
[349806131,1737437443451,-500.0,0.00021917,3]
[349806132,1737437443460,-3434.16019946,0.00021917,3]
[349806133,1737437443472,-3003.37980054,0.00021917,3]
[349806135,1737437443481,-500.0,0.00021917,3]
[349806137,1737437443490,-500.0,0.00021917,3]
[349806139,1737437443500,-921.61,0.00021917,3]
[349806142,1737437443510,-1000.0,0.00021917,3]
[349806145,1737437443520,-501.58354436,0.00021917,3]
[349806147,1737437443529,-500.0,0.00021917,3]
[349806150,1737437443539,-188.0,0.00021917,2]
[349806152,1737437443548,-534.48336972,0.00021917,3]
[349807018,1737437671742,8115.0,0.00015,2]
[349807019,1737437696245,300.0,0.00023,120]
[349807020,1737437711469,300.0,0.00024,120]
[349807022,1737437751845,300.0,0.00024,120]
[349807023,1737437773993,300.0,0.00024,120]
[349807024,1737437785610,312.0,0.00024,120]
[349807025,1737438154218,9036.22593081,2.2e-05,2]
[349807034,1737438530152,163.361984,0.00013973,2]
[349807076,1737438637101,-314.19169592,0.00018622,2]
[349807079,1737438637111,-572.68248307,0.000189,2]
[349807081,1737438637120,-2581.84696077,0.00019518,2]
[349807086,1737438637159,-1633.43157673,0.00019518,2]
[349807088,1737438637169,-250.0,0.00019958,2]
[349807090,1737438637178,-502.34597196,0.00020432,2]
[349807092,1737438637188,-300.0,0.00020759,2]
[349807094,1737438637198,-4597.09277447,0.0002076,2]
[349807096,1737438637210,-1869.03403965,0.0002076,2]
[349807098,1737438637222,-15117.42927738,0.0002076,2]
[349807100,1737438637231,-262.962441,0.00020909,2]
[349807102,1737438637240,-163.361984,0.00021661,2]
[349807104,1737438637250,-1640.25342352,0.00021665,2]
[349807106,1737438637261,-5932.06493337,0.00021665,2]
[349807108,1737438637271,-187.12610763,0.00021705,2]
[349807110,1737438637281,-154.47,0.00021805,2]
[349807112,1737438637290,-1188.72,0.000219,2]
[349807114,1737438637300,-403.71196432,0.000219,3]
[349807116,1737438637309,-500.0,0.00021906,7]
[349807118,1737438637318,-260.57276187,0.00021907,2]
[349807120,1737438637328,-175.472,0.00021907,2]
[349807122,1737438637338,-344.4,0.00021907,3]
[349807124,1737438637348,-861.0,0.00021907,3]
[349807126,1737438637357,-214.64601891,0.00021907,3]
[349807233,1737438638516,-646.35398109,0.00021907,3]